fUSD/lending_fUSD_20260322
["ID","MTS","AMOUNT","RATE_DAILY","PERIOD"]
[408739092,1774183842984,-10272.10520533,0.00016022,2]
[408739093,1774183842994,-500.0,0.00016022,2]
[408739094,1774183843004,-151.0,0.00016022,2]
[408739095,1774183843014,-293.17725025,0.00016022,2]
[408739096,1774183843023,-672.0,0.00016055,2]
[408739097,1774183843032,-672.0,0.00016066,2]
[408739098,1774183843042,-10652.17309792,0.00016077,2]
[408739099,1774183843052,-500.0,0.00016077,2]
[408739100,1774183843061,-151.0,0.00016077,2]
[408739101,1774183843071,-304.02480851,0.00016077,2]
[408739102,1774183843081,-9999.99,0.00016116,2]
[408739103,1774183843090,-11046.30350255,0.00016132,2]
[408739104,1774183843100,-500.0,0.00016132,2]
[408739105,1774183843109,-151.0,0.00016132,2]
[408739106,1774183843119,-315.27372642,0.00016132,2]
[408739107,1774183843128,-672.0,0.00016168,2]
[408739108,1774183843138,-11455.01673214,0.00016187,2]
[408739109,1774183843147,-500.0,0.00016187,2]
[408739110,1774183843156,-151.0,0.00016187,2]
[408739111,1774183843166,-326.9388543,0.00016187,2]
[408739112,1774183843175,-672.0,0.00016209,2]
[408739113,1774183843184,-672.0,0.00016225,2]
[408739114,1774183843194,-507.0,0.00016237,3]
[408739115,1774183843204,-672.0,0.00016239,2]
[408739116,1774183843213,-11878.85235123,0.00016242,2]
[408739117,1774183843222,-500.0,0.00016242,2]
[408739118,1774183843231,-151.0,0.00016242,2]
[408739119,1774183843241,-339.03559191,0.00016242,2]
[408739120,1774183843250,-672.0,0.00016243,2]
[408739121,1774183843259,-4000.0,0.00016282,2]
[408739122,1774183843268,-12318.36988823,0.00016297,2]
[408739123,1774183843278,-500.0,0.00016297,2]
[408739124,1774183843287,-151.0,0.00016297,2]
[408739125,1774183843296,-500.0,0.00016352,2]
[408739126,1774183843306,-12774.14957409,0.00016352,2]
[408739127,1774183843315,-151.0,0.00016352,2]
[408739128,1774183843325,-677.0,0.00016392,2]
[408739129,1774183843335,-151.0,0.00016405,2]
[408739130,1774183843345,-171.63596104,0.00016405,2]
[408739131,1774183843354,-209.40437684,0.00016405,2]
[408739132,1774183843363,-200.0,0.00016405,2]
[408739133,1774183843373,-771.01748645,0.00016405,2]
[408739134,1774183843382,-693.3919763,0.00016405,2]
[408739135,1774183843392,-290.26104003,0.00016405,2]
[408739136,1774183843404,-500.0,0.00016407,2]
[408739137,1774183843414,-13246.79310833,0.00016407,2]
[408739138,1774183843423,-151.0,0.00016407,2]
[408739139,1774183843432,-672.0,0.00016418,2]
[408739140,1774183843443,-672.0,0.00016425,2]
[408739141,1774183843454,-500.0,0.00016437,2]
[408739142,1774183843463,-500.0,0.00016438,2]
[408739143,1774183843472,-500.0,0.00016438,2]
[408739144,1774183843481,-500.0,0.00016438,2]
[408739145,1774183843491,-500.0,0.00016438,2]
[408739146,1774183843500,-500.0,0.00016438,2]
[408739147,1774183843509,-500.0,0.00016438,2]
[408739148,1774183843518,-500.0,0.00016438,2]
[408739149,1774183843527,-500.0,0.00016438,2]
[408739150,1774183843537,-500.0,0.00016438,2]
[408739151,1774183843546,-239.89,0.00016438,2]
[408739152,1774183843555,-268.67,0.00016438,2]
[408739153,1774183843564,-151.0,0.00016438,2]
[408739154,1774183843574,-200.0,0.00016438,2]
[408739155,1774183843583,-151.0,0.00016438,2]
[408739156,1774183843593,-151.0,0.00016438,2]
[408739157,1774183843602,-273.46439,0.00016438,2]
[408739158,1774183843612,-273.46439,0.00016438,2]
[408739159,1774183843620,-273.46439,0.00016438,2]
[408739160,1774183843630,-273.46439,0.00016438,2]
[408739161,1774183843640,-277.15195125,0.00016461,2]
[408739162,1774183843649,-500.0,0.00016462,2]
[408739163,1774183843658,-13736.92445334,0.00016462,2]
[408739164,1774183843668,-151.0,0.00016462,2]
[408739165,1774183843678,-150.0,0.00016476,10]
[408739166,1774183843688,-208.60060824,0.00016476,10]
[408739167,1774183843698,-151.2163,0.000165,2]
[408739168,1774183843709,-888.15,0.000165,2]
[408739169,1774183843988,-672.0,0.00016567,2]
[408739170,1774183843998,-500.0,0.00016638,14]
[408739171,1774183844008,-418.19,0.0001666,2]
[408739172,1774183844017,-672.0,0.0001666,2]
[408739173,1774183844026,-4000.0,0.0001667,2]
[408739174,1774183844034,-166.82,0.00016712,2]
[408739175,1774183844043,-672.0,0.00016758,2]
[408739176,1774183844052,-150.0,0.0001683,7]
[408739177,1774183844061,-672.0,0.00016867,2]
[408739178,1774183844071,-672.0,0.00016872,2]
[408739179,1774183844080,-1451.4,0.000169,2]
[408739180,1774183844090,-672.0,0.00016924,2]
[408739181,1774183844100,-151.0,0.00016953,2]
[408739182,1774183844110,-217.15233878,0.00016953,2]
[408739183,1774183844121,-200.0,0.00016953,2]
[408739184,1774183844132,-799.54513345,0.00016953,2]
[408739185,1774183844142,-719.04747942,0.00016953,2]
[408739186,1774183844152,-301.00069851,0.00016953,2]
[408739187,1774183844161,-672.0,0.00016979,2]
[408739188,1774183844170,-259.63469067,0.0001699,2]
[408739189,1774183844179,-300.0,0.00017,2]
[408739190,1774183844189,-320228.69777313,0.00017,2]
[408739191,1774183844199,-250.0,0.00017,2]
[408739192,1774183844208,-200.0,0.00017,2]
[408739193,1774183844217,-672.0,0.00017011,2]
[408739194,1774183844226,-4000.0,0.00017058,2]
[408739195,1774183844235,-935.8,0.000171,2]
[408739196,1774183844244,-1272.69,0.000171,2]
[408739197,1774183844254,-1359.0,0.000171,2]
[408739198,1774183844263,-7389.0,0.00017116,2]
[408739199,1774183844273,-672.0,0.00017166,2]
[408739200,1774183844282,-672.0,0.00017249,2]
[408739201,1774183844292,-507.0,0.00017356,4]
[408739202,1774183844302,-151.0,0.00017501,2]
[408739203,1774183844311,-225.18697532,0.00017501,2]
[408739204,1774183844321,-200.0,0.00017501,2]
[408739205,1774183844331,-829.12830338,0.00017501,2]
[408739206,1774183844340,-745.65223616,0.00017501,2]
[408739207,1774183844349,-312.13772435,0.00017501,2]
[408739208,1774183844359,-177.53,0.0001751,2]
[408739209,1774183844368,-303.62,0.0001751,2]
[408739210,1774183844378,-283.71,0.0001751,2]
[408739211,1774183844387,-492.79,0.0001751,2]
[408739212,1774183844398,-311.04,0.0001751,2]
[408739213,1774183844409,-250.0,0.00017808,2]
[408739214,1774183844419,-211.64,0.00017871,2]
[408739215,1774183844428,-2142.99,0.000179,2]
[408739216,1774183844440,-196.500827,0.00017961,7]
[408739217,1774183844450,-151.0,0.00018049,2]
[408739218,1774183844460,-233.51889341,0.00018049,2]
[408739219,1774183844469,-200.0,0.00018049,2]
[408739220,1774183844479,-859.80605061,0.00018049,2]
[408739221,1774183844488,-773.2413689,0.00018049,2]
[408739222,1774183844498,-323.68682015,0.00018049,2]
[408739223,1774183844507,-7830.4016749,0.00018058,2]
[408739224,1774183844516,-159.3427733,0.00018217,2]
[408739225,1774183844527,-888.15,0.000183,2]
[408739226,1774183844536,-507.0,0.00018475,5]
[408739227,1774183844545,-211.63399379,0.00018586,2]
[408739228,1774183844555,-721.12765535,0.00018596,2]
[408739229,1774183844565,-599.60298507,0.00018596,2]
[408739230,1774183844575,-151.0,0.00018597,2]
[408739231,1774183844584,-242.15909246,0.00018597,2]
[408739232,1774183844593,-200.0,0.00018597,2]
[408739233,1774183844602,-891.61887448,0.00018597,2]
[408739234,1774183844611,-801.85129955,0.00018597,2]
[408739235,1774183844620,-335.6632325,0.00018597,2]
[408739236,1774183844629,-199.9,0.00018904,2]
[408739237,1774183844638,-350.0,0.00019,2]
[408739238,1774183844647,-151.0,0.00019145,2]
[408739239,1774183844656,-251.11897888,0.00019145,2]
[408739240,1774183844665,-200.0,0.00019145,2]
[408739241,1774183844675,-924.60877284,0.00019145,2]
[408739242,1774183844684,-831.51979763,0.00019145,2]
[408739243,1774183844694,-445.5413865,0.00019145,2]
[408739244,1774183844703,-500.0,0.00019176,2]
[408739245,1774183844712,-150.12,0.00019178,2]
[408739246,1774183844722,-151.0,0.00019178,2]
[408739247,1774183844731,-151.0,0.00019178,2]
[408739248,1774183844740,-188.740999,0.00019178,2]
[408739249,1774183844750,-188.740999,0.00019178,2]
[408739250,1774183844759,-188.740999,0.00019178,2]
[408739251,1774183844768,-188.740999,0.00019178,2]
[408739252,1774183844777,-151.0,0.00019178,2]
[408739253,1774183844787,-151.0,0.00019178,2]
[408739254,1774183844796,-151.0,0.00019178,2]
[408739255,1774183844807,-151.0,0.00019178,2]
[408739256,1774183844816,-444.613459,0.00019178,2]
[408739257,1774183844826,-444.613459,0.00019178,2]
[408739258,1774183844835,-444.613459,0.00019178,2]
[408739259,1774183844844,-444.613459,0.00019178,2]
[408739260,1774183844855,-150.0,0.00019178,2]
[408739261,1774183844864,-58648.31,0.000192,2]
[408739262,1774183844873,-1451.4,0.000193,2]
[408739263,1774183844884,-507.0,0.00019593,6]
[408739264,1774183844894,-65503.4456593,0.00019605,2]
[408739265,1774183844905,-151.0,0.00019693,2]
[408739266,1774183844916,-218.59009241,0.00019693,2]
[408739267,1774183844926,-200.0,0.00019693,2]
[408739268,1774183844936,-958.81929743,0.00019693,2]
[408739269,1774183844946,-862.28603014,0.00019693,2]
[408739270,1774183844955,-151.8282,0.000197,2]
[408739271,1774183844965,-935.8,0.000198,2]
[408739272,1774183844974,-1359.0,0.000198,2]
[408739273,1774183844984,-1272.69,0.000198,2]
[408739274,1774183844993,-902.60506569,0.0002,2]
[408739275,1774183845002,-500.0,0.0002,2]
[408739276,1774183845011,-303.0,0.0002,2]
[408739277,1774183845020,-177.53,0.00020137,2]
[408739278,1774183845029,-283.71,0.00020137,2]
[408739279,1774183845038,-492.79,0.00020137,2]
[408739280,1774183845048,-311.04,0.00020137,2]
[408739281,1774183845057,-7830.4016749,0.0002015,2]
[408739282,1774183845066,-152.39358648,0.00020211,45]
[408739283,1774183845075,-151.0,0.00020241,2]
[408739284,1774183845085,-200.0,0.00020241,2]
[408739285,1774183845094,-256.08574955,0.00020241,2]
[408739286,1774183845103,-14615.7943202,0.00020417,2]
[408739287,1774183845112,-507.0,0.00020712,7]
[408739288,1774183845121,-151.0,0.00020789,2]
[408739289,1774183845130,-200.0,0.00020789,2]
[408739290,1774183845141,-888.15,0.000208,7]
[408739291,1774183845150,-300.0,0.00021,2]
[408739292,1774183845159,-881.57656971,0.00021002,2]
[408739293,1774183845168,-500.0,0.00021068,2]
[408739294,1774183845177,-2142.99,0.000211,2]
[408739295,1774183845186,-380.0,0.00021315,2]
[408739296,1774183845196,-747.8093786,0.00021335,2]
[408739297,1774183845205,-621.78829552,0.00021335,2]
[408739298,1774183845215,-214.1622397,0.00021337,2]
[408739299,1774183845224,-200.0,0.00021337,2]
[408739300,1774183845232,-507.0,0.00021831,8]
[408739301,1774183845242,-200.0,0.00021885,2]
[408739302,1774183845251,-1451.4,0.000219,2]
[408739303,1774183845260,-500.0,0.00021915,2]
[408739304,1774183845269,-5000.0,0.00021918,2]
[408739305,1774183845278,-151.0,0.00021918,2]
[408739306,1774183845288,-151.0,0.00021918,2]
[408739307,1774183845297,-151.0,0.00021918,2]
[408739308,1774183845306,-1000.0,0.00021918,2]
[408739309,1774183845315,-1000.0,0.00021918,2]
[408739310,1774183845325,-624.0,0.00021918,2]
[408739311,1774183845334,-155.405391,0.00021918,2]
[408739312,1774183845343,-155.405391,0.00021918,2]
[408739313,1774183845352,-155.405391,0.00021918,2]
[408739314,1774183845361,-155.405391,0.00021918,2]
[408739315,1774183845371,-500.0,0.00021918,2]
[408739316,1774183845380,-566.0,0.00022,2]
[408739317,1774183845389,-694.99529243,0.00022,2]
[408739318,1774183845401,-500.0,0.00022,2]
[408739319,1774183845410,-500.0,0.00022,2]
[408739320,1774183845430,-984.30250844,0.00022,2]
[408739321,1774183845439,-576.15,0.00022,30]
[408739322,1774183845449,-250.0,0.00022166,4]
[408739323,1774183845459,-159.92,0.00022191,3]
[408739324,1774183845468,-7830.4016749,0.00022243,2]
[408739325,1774183845477,-256.77073787,0.00022433,2]
[408739326,1774183845487,-935.8,0.000225,7]
[408739327,1774183845497,-1359.0,0.000225,7]
[408739328,1774183845506,-1272.69,0.000225,7]
[408739329,1774183845515,-173.55,0.000227,14]
[408739330,1774183845525,-152.4426,0.000229,2]
[408739331,1774183845534,-507.0,0.00022949,9]
[408739332,1774183845543,-566.0,0.00023,2]
[408739333,1774183845552,-979.16666667,0.00023,3]
[408739334,1774183845562,-196.500827,0.00023093,14]
[408739335,1774183845571,-1521.0,0.00023106,2]
[408739336,1774183845581,-1521.0,0.00023106,2]
[408739337,1774183845591,-226.61972177,0.00023106,2]
[408739338,1774183845600,-160.0,0.00023106,2]
[408739339,1774183845609,-1521.0,0.00023106,2]
[408739340,1774183845618,-160.0,0.00023106,2]
[408739341,1774183845628,-1521.0,0.00023106,2]
[408739342,1774183845637,-164.74526196,0.00023106,2]
[408739343,1774183845646,-151.0,0.00023106,2]
[408739344,1774183845656,-1521.0,0.00023106,2]
[408739345,1774183845665,-151.0,0.00023106,2]
[408739346,1774183845674,-151.0,0.00023106,2]
[408739347,1774183845684,-1521.0,0.00023106,2]
[408739348,1774183845694,-151.0,0.00023106,2]
[408739349,1774183845703,-1521.0,0.00023106,2]
[408739350,1774183845712,-151.0,0.00023106,2]
[408739351,1774183845722,-1521.0,0.00023106,2]
[408739352,1774183845730,-1521.0,0.00023106,2]
[408739353,1774183845740,-1521.0,0.00023106,2]
[408739354,1774183845749,-153.0,0.00023106,2]
[408739355,1774183845759,-1521.0,0.00023106,2]
[408739357,1774183845768,-239.0021021,0.00023106,2]
[408739358,1774183845781,-441.788209,0.00023106,2]
[408739359,1774183845792,-151.0,0.00023106,2]
[408739360,1774183845802,-153.78487307,0.00023106,2]
[408739361,1774183845813,-888.15,0.000232,7]
[408739362,1774183845822,-500.0,0.00023287,2]
[408739363,1774183845831,-1844.67747594,0.00023299,2]
[408739364,1774183845841,-177.53,0.00023639,2]
[408739365,1774183845851,-283.71,0.00023639,2]
[408739366,1774183845860,-492.79,0.00023639,2]
[408739367,1774183845870,-311.04,0.00023639,2]
[408739368,1774183845880,-822.9,0.00023836,2]
[408739369,1774183845890,-566.0,0.00024,2]
[408739370,1774183845900,-1451.4,0.00024,7]
[408739371,1774183845909,-507.0,0.00024068,10]
[408739372,1774183845919,-775.47832561,0.00024074,2]
[408739373,1774183845928,-644.79446246,0.00024074,2]
[408739374,1774183845938,-1317.13,0.00024322,2]
[408739375,1774183845948,-6489.8,0.00024322,2]
[408739376,1774183845957,-3344.32,0.00024322,2]
[408739377,1774183845966,-2344.28,0.00024322,2]
[408739378,1774183845976,-210.69153922,0.0002463,2]
[408739379,1774183845985,-318.48764684,0.0002465,120]
[408739380,1774183845995,-500.0,0.00024654,2]
[408739381,1774183846004,-500.0,0.00024656,2]
[408739382,1774183846014,-151.0,0.00024658,2]
[408739383,1774183846025,-151.0,0.00024658,2]
[408739384,1774183846035,-151.0,0.00024658,2]
[408739385,1774183846044,-204.735556,0.00024658,2]
[408739386,1774183846054,-151.0,0.00024658,2]
[408739387,1774183846064,-151.0,0.00024658,2]
[408739388,1774183846074,-1000.0,0.00024658,2]
[408739389,1774183846084,-150.0,0.00024658,2]
[408739390,1774183846093,-935.8,0.000247,7]
[408739391,1774183846103,-500.0,0.00024877,2]
[408739392,1774183846112,-151.0,0.00024897,7]
[408739393,1774183846122,-150.0,0.00024899,2]
[408739394,1774183846132,-150.0,0.00024899,2]
[408739395,1774183846146,-150.0,0.00024899,2]
[408739396,1774183846156,-150.0,0.00024899,2]
[408739397,1774183846165,-150.0,0.00024899,2]
[408739398,1774183846175,-150.0,0.00024899,2]
[408739399,1774183846185,-199.51664943,0.00024899,2]
[408739400,1774183846195,-666.0,0.00024899,2]
[408739401,1774183846206,-151.0,0.000249,2]
[408739402,1774183846216,-151.0,0.000249,2]
[408739403,1774183846226,-151.0,0.000249,2]
[408739404,1774183846236,-151.0,0.000249,2]
[408739405,1774183846246,-151.0,0.000249,2]
[408739406,1774183846255,-157.385589,0.000249,2]
[408739407,1774183846265,-151.0,0.000249,2]
[408739408,1774183846275,-151.0,0.000249,2]
[408739409,1774183846285,-151.0,0.000249,2]
[408739410,1774183846295,-1057.162959,0.000249,2]
[408739411,1774183846305,-151.0,0.000249,2]
[408739412,1774183846314,-1057.162959,0.000249,2]
[408739413,1774183846324,-1057.162959,0.000249,2]
[408739414,1774183846333,-1057.162959,0.000249,2]
[408739415,1774183846342,-151.0,0.000249,2]
[408739416,1774183846351,-151.0,0.000249,2]
[408739417,1774183846361,-151.0,0.000249,2]
[408739418,1774183846370,-151.0,0.000249,2]
[408739419,1774183846379,-151.0,0.000249,2]
[408739420,1774183846388,-151.0,0.000249,2]
[408739421,1774183846400,-151.0,0.000249,2]
[408739422,1774183846409,-1359.0,0.000249,7]
[408739423,1774183846419,-1272.69,0.000249,7]
[408739424,1774183846428,-151.0,0.000249,2]
[408739425,1774183846438,-188.740999,0.000249,2]
[408739426,1774183846447,-188.740999,0.000249,2]
[408739427,1774183846457,-188.740999,0.000249,2]
[408739428,1774183846466,-188.740999,0.000249,2]
[408739429,1774183846476,-151.0,0.000249,2]
[408739430,1774183846486,-188.111747,0.000249,2]
[408739431,1774183846495,-188.111747,0.000249,2]
[408739432,1774183846505,-188.111747,0.000249,2]
[408739433,1774183846518,-188.111747,0.000249,2]
[408739434,1774183846527,-331.558085,0.000249,2]
[408739435,1774183846537,-331.558085,0.000249,2]
[408739436,1774183846546,-331.558085,0.000249,2]
[408739437,1774183846555,-331.558085,0.000249,2]
[408739438,1774183846565,-155.405391,0.000249,2]
[408739439,1774183846574,-155.405391,0.000249,2]
[408739440,1774183846583,-155.405391,0.000249,2]
[408739441,1774183846592,-155.405391,0.000249,2]
[408739442,1774183846602,-151.841544,0.000249,2]
[408739443,1774183846611,-151.841544,0.000249,2]
[408739444,1774183846621,-151.841544,0.000249,2]
[408739445,1774183846631,-151.841544,0.000249,2]
[408739446,1774183846640,-273.46439,0.000249,2]
[408739447,1774183846650,-600.0,0.000249,9]
[408739448,1774183846660,-273.46439,0.000249,2]
[408739449,1774183846670,-273.46439,0.000249,2]
[408739450,1774183846680,-273.46439,0.000249,2]
[408739451,1774183846690,-151.0,0.000249,2]
[408739452,1774183846700,-151.0,0.000249,2]
[408739453,1774183846713,-545146.603764,0.000249,2]
[408739454,1774183846723,-151.0,0.000249,2]
[408739455,1774183846733,-151.0,0.000249,2]
[408739456,1774183846743,-444.613459,0.000249,2]
[408739457,1774183846753,-444.613459,0.000249,2]
[408739458,1774183846762,-444.613459,0.000249,2]
[408739459,1774183846772,-444.613459,0.000249,2]
[408739460,1774183846782,-753.746533,0.000249,2]
[408739461,1774183846791,-753.746533,0.000249,2]
[408739462,1774183846802,-753.746533,0.000249,2]
[408739463,1774183846812,-753.746533,0.000249,2]
[408739464,1774183846822,-151.0,0.000249,2]
[408739465,1774183846831,-285.212221,0.000249,2]
[408739466,1774183846840,-216.0,0.0002493,30]
[408739467,1774183846851,-2595.35189897,0.00025,30]
[408739468,1774183846860,-1336.26649901,0.00025,4]
[408739469,1774183846870,-221.85882281,0.00025,120]
[408739470,1774183846879,-566.0,0.00025,2]
[408739471,1774183846889,-979.16666667,0.00025,7]
[408739472,1774183846898,-160.0,0.00025,7]
[408739473,1774183846911,-619.0,0.00025183,10]
[408739474,1774183846920,-708.0,0.00025183,10]
[408739475,1774183846930,-507.0,0.00025186,11]
[408739476,1774183846940,-666.0,0.00025399,2]
[408739477,1774183846950,-58648.31,0.000254,7]
[408739478,1774183846960,-250.0,0.00025855,7]
[408739479,1774183846969,-150.0,0.0002589,2]
[408739480,1774183846979,-608.05,0.00025902,2]
[408739481,1774183846988,-4635.57,0.00025902,2]
[408739482,1774183846998,-1674.49,0.00025902,2]
[408739483,1774183847007,-27005.76314661,0.00026,10]
[408739484,1774183847017,-979.16666667,0.00026,10]
[408739485,1774183847027,-151.0,0.00026,2]
[408739486,1774183847036,-151.0,0.00026,2]
[408739487,1774183847046,-151.0,0.00026,2]
[408739488,1774183847055,-566.0,0.00026,2]
[408739489,1774183847065,-979.16666667,0.00026,7]
[408739490,1774183847074,-160.0,0.00026,7]
[408739491,1774183847085,-5533.0,0.00026,3]
[408739492,1774183847095,-500.0,0.00026099,15]
[408739493,1774183847107,-888.15,0.000261,7]
[408739494,1774183847117,-576.15,0.00026199,30]
[408739495,1774183847127,-153.0595,0.000262,2]
[408739496,1774183847136,-507.0,0.00026305,12]
[408739497,1774183847145,-5533.0,0.000264,5]
[408739498,1774183847155,-940.81,0.0002643,2]
[408739499,1774183847165,-2388.8,0.0002643,2]
[408739500,1774183847175,-1451.4,0.000268,7]
[408739501,1774183847185,-804.17102365,0.00026813,2]
[408739502,1774183847195,-668.65185757,0.00026813,2]
[408739503,1774183847204,-800.0,0.00026986,120]
[408739504,1774183847214,-800.0,0.00026986,120]
[408739505,1774183847224,-800.0,0.00026986,120]
[408739506,1774183847234,-747.28321255,0.00027,120]
[408739507,1774183847243,-278.62222136,0.00027,120]
[408739508,1774183847253,-584.8,0.00027,2]
[408739509,1774183847262,-308.47240642,0.00027149,2]
[408739510,1774183847272,-150.0,0.00027185,2]
[408739511,1774183847282,-166.66,0.00027258,30]
[408739512,1774183847291,-935.8,0.000273,7]
[408739513,1774183847300,-242.01140208,0.0002737,2]
[408739514,1774183847309,-780.92307692,0.0002737,2]
[408739515,1774183847319,-467.30769231,0.0002737,2]
[408739516,1774183847329,-500.0,0.00027393,2]
[408739517,1774183847338,-600.0,0.00027397,120]
[408739518,1774183847348,-300.0,0.00027397,2]
[408739519,1774183847357,-522.97,0.00027397,2]
[408739520,1774183847367,-151.0,0.00027397,2]
[408739521,1774183847377,-259.725193,0.00027397,2]
[408739522,1774183847386,-566.81434,0.00027397,2]
[408739523,1774183847398,-566.81434,0.00027397,2]
[408739524,1774183847409,-566.81434,0.00027397,2]
[408739525,1774183847418,-566.81434,0.00027397,2]
[408739526,1774183847428,-566.81434,0.00027397,2]
[408739527,1774183847437,-566.81434,0.00027397,2]
[408739528,1774183847447,-566.81434,0.00027397,2]
[408739529,1774183847456,-566.81434,0.00027397,2]
[408739530,1774183847465,-1000.0,0.00027397,20]
[408739531,1774183847476,-330.269218,0.00027397,2]
[408739532,1774183847486,-330.269218,0.00027397,2]
[408739533,1774183847504,-330.269218,0.00027397,2]
[408739534,1774183847514,-330.269218,0.00027397,2]
[408739535,1774183847523,-330.269218,0.00027397,2]
[408739536,1774183847533,-330.269218,0.00027397,2]
[408739537,1774183847543,-330.269218,0.00027397,2]
[408739538,1774183847552,-330.269218,0.00027397,2]
[408739539,1774183847562,-284.5883761,0.00027397,2]
[408739540,1774183847571,-151.0,0.00027397,2]
[408739541,1774183847580,-159.480838,0.00027397,2]
[408739542,1774183847590,-216.0,0.00027397,2]
[408739543,1774183847599,-216.0,0.00027397,2]
[408739544,1774183847609,-216.0,0.00027397,2]
[408739545,1774183847618,-216.0,0.00027397,2]
[408739546,1774183847627,-216.0,0.00027397,2]
[408739547,1774183847637,-216.0,0.00027397,2]
[408739548,1774183847646,-216.0,0.00027397,2]
[408739549,1774183847656,-216.0,0.00027397,2]
[408739550,1774183847665,-752.17639,0.00027397,2]
[408739551,1774183847675,-752.17639,0.00027397,2]
[408739552,1774183847685,-752.17639,0.00027397,2]
[408739553,1774183847694,-752.17639,0.00027397,2]
[408739554,1774183847703,-752.17639,0.00027397,2]
[408739555,1774183847713,-752.17639,0.00027397,2]
[408739556,1774183847723,-752.17639,0.00027397,2]
[408739557,1774183847733,-752.17639,0.00027397,2]
[408739558,1774183847742,-316.805713,0.00027397,2]
[408739559,1774183847752,-316.805713,0.00027397,2]
[408739560,1774183847762,-316.805713,0.00027397,2]
[408739561,1774183847772,-316.805713,0.00027397,2]
[408739562,1774183847782,-316.805713,0.00027397,2]
[408739563,1774183847792,-316.805713,0.00027397,2]
[408739564,1774183847801,-316.805713,0.00027397,2]
[408739565,1774183847811,-316.805713,0.00027397,2]
[408739566,1774183847822,-23453.09,0.00027397,10]
[408739567,1774183847832,-507.0,0.00027424,13]
[408739568,1774183847842,-166.66,0.00027832,30]
[408739569,1774183847855,-500.0,0.00027863,2]
[408739570,1774183847864,-1358.0,0.00027883,5]
[408739571,1774183847874,-1359.0,0.000279,7]
[408739572,1774183847888,-1272.69,0.000279,7]
[408739573,1774183847898,-4440.60988188,0.00027901,2]
[408739574,1774183847908,-1662.50028756,0.00027941,2]
[408739575,1774183847919,-225.23,0.00027972,2]
[408739576,1774183847929,-764.94,0.00027972,2]
[408739577,1774183847940,-908.39,0.00027972,2]
[408739578,1774183847951,-908.39,0.00027972,2]
[408739579,1774183848414,-908.39,0.00027972,2]
[408739580,1774183848451,-1997.899557,0.00028,60]
[408739581,1774183848461,-979.16666667,0.00028,10]
[408739582,1774183848470,-58648.31,0.000281,7]
[408739583,1774183848481,-151.0,0.000281,7]
[408739584,1774183848494,-157.125205,0.000281,7]
[408739585,1774183848504,-888.15,0.000281,7]
[408739586,1774183848514,-166.66,0.00028406,30]
[408739587,1774183848523,-166.82,0.00028493,2]
[408739588,1774183848533,-869.84189307,0.00028541,2]
[408739589,1774183848543,-507.0,0.00028542,14]
[408739590,1774183848552,-150.0,0.00028544,2]
[408739591,1774183848562,-1738.44,0.000286,2]
[408739592,1774183848572,-254.96,0.000287,14]